[Event "Berkeley Summer IM 2019"]
[Site "Berkeley"]
[Date "2019.08.20"]
[Round "7.3"]
[White "Hernandez Moya, Yuleisy"]
[Black "Wang, Annie"]
[Result "1/2-1/2"]
[ECO "B51"]
[WhiteElo "2199"]
[BlackElo "2321"]
[Annotator "NA"]
[PlyCount "62"]
[EventDate "2019.08.14"]
[EventType "tourn"]
[EventCountry "USA"]
[SourceTitle "playchess.com"]
[Source "ChessBase"]
[SourceQuality "1"]
[TimeControl "5400+30"]

1. e4 {[%emt 0:00:00]} c5 {[%emt 0:00:00]} 2. Nf3 {[%emt 0:00:00]} d6 {[%emt 0:00:00]} 3. Bb5+ {[%emt 0:00:00]} Nd7 {[%emt 0:00:11]} 4. O-O {[%emt 0:00:00]} Ngf6 {[%emt 0:01:17]} 5. Re1 {[%emt 0:00:02]} a6 {[%emt 0:00:37]} 6. Bf1 {[%emt 0:00:15]} e6 {[%emt 0:01:36]} 7. c3 {[%emt 0:01:48]} Be7 {[%emt 0:01:02]} 8. d4 {[%emt 0:00:31]} cxd4 {[%emt 0:01:50]} 9. cxd4 {[%emt 0:00:11]} O-O {[%emt 0:00:34]} 10. Nc3 {[%emt 0:04:48]} b5 {[%emt 0:04:03]} 11. e5 {[%emt 0:09:51]} Ne8 {[%emt 0:01:55]} 12. Ne4 {[%emt 0:03:15]} Bb7 {[%emt 0:03:18]} 13. Qd3 {[%emt 0:17:48]} dxe5 {[%emt 0:05:01]} 14. dxe5 {[%emt 0:00:34]} Nc5 {[%emt 0:02:06]} 15. Nxc5 {[%emt 0:01:08]} Bxc5 {[%emt 0:00:09]} 16. Ng5 {[%emt 0:01:21]} Qxd3 {[%emt 0:01:19]} 17. Bxd3 {[%emt 0:00:07]} g6 {[%emt 0:00:57]} 18. Be3 {[%emt 0:05:26]} Bb4 {[%emt 0:04:38]} 19. Red1 {[%emt 0:04:35]} Nc7 {[%emt 0:03:31]} 20. Ne4 {[%emt 0:04:50]} Nd5 {[%emt 0:02:10]} 21. Bc5 {[%emt 0:00:15]} Rfd8 {[%emt 0:02:47]} 22. g3 {[%emt 0:13:46]} Bxc5 {[%emt 0:07:09]} 23. Nxc5 {[%emt 0:00:21]} Bc6 {[%emt 0:03:13]} 24. Be4 {[%emt 0:04:59]} a5 {[%emt 0:03:11]} 25. Rac1 {[%emt 0:01:48]} Rdc8 {[%emt 0:01:53]} 26. Nb3 {[%emt 0:06:53]} Nb4 {[%emt 0:07:31]} 27. Bxc6 {[%emt 0:00:50]} Rxc6 {[%emt 0:01:07]} 28. Rxc6 {[%emt 0:01:26]} Nxc6 {[%emt 0:00:08]} 29. f4 {[%emt 0:00:11]} Nb4 {[%emt 0:03:28]} 30. a3 {[%emt 0:00:11]} Nd5 {[%emt 0:01:34]} 31. Kf2 {[%emt 0:00:16]} Nxf4 1/2-1/2

[Event "Berkeley Summer IM 2019"]
[Site "Berkeley"]
[Date "2019.08.20"]
[Round "7.4"]
[White "Matras-Clement, Agnieszka"]
[Black "Belakovskaia, Anjelina"]
[Result "1-0"]
[ECO "B01"]
[WhiteElo "2260"]
[BlackElo "2191"]
[Annotator "NA"]
[PlyCount "63"]
[EventDate "2019.08.14"]
[EventType "tourn"]
[EventCountry "USA"]
[SourceTitle "playchess.com"]
[Source "ChessBase"]
[SourceQuality "1"]
[TimeControl "5400+30"]

1. e4 {[%emt 0:00:00]} d5 {[%emt 0:00:00]} 2. exd5 {[%emt 0:00:00]} Nf6 {[%emt 0:00:00]} 3. d4 {[%emt 0:00:46]} Nxd5 {[%emt 0:00:00]} 4. Be2 {[%emt 0:00:10]} g6 {[%emt 0:01:07]} 5. Nf3 {[%emt 1:31:34]} Bg7 {[%emt 0:00:23]} 6. O-O {[%emt 0:00:00]} O-O {[%emt 0:03:08]} 7. c4 {[%emt 0:00:00]} Nb6 {[%emt 0:00:06]} 8. Nc3 {[%emt 0:00:00]} Nc6 {[%emt 0:10:20]} 9. d5 {[%emt 0:00:00]} Na5 {[%emt 0:04:08]} 10. c5 {[%emt 0:00:00]} Nd7 {[%emt 0:20:31]} 11. Bd2 {[%emt 0:00:00]} c6 {[%emt 0:02:12]} 12. b4 {[%emt 0:00:00]} cxd5 {[%emt 0:00:21]} 13. bxa5 {[%emt 0:00:00]} Nxc5 {[%emt 0:00:14]} 14. Rc1 {[%emt 0:00:00]} d4 {[%emt 0:10:42]} 15. Nb5 {[%emt 0:00:00]} b6 {[%emt 0:00:07]} 16. axb6 {[%emt 0:00:00]} axb6 {[%emt 0:00:08]} 17. Bc4 {[%emt 0:00:00]} e5 {[%emt 0:06:23]} 18. Re1 {[%emt 0:00:00]} Bg4 {[%emt 0:16:18]} 19. h3 {[%emt 0:00:00]} Bxf3 {[%emt 0:00:04]} 20. Qxf3 {[%emt 0:00:00]} Kh8 {[%emt 0:00:59]} 21. Bb4 {[%emt 0:00:00]} f5 {[%emt 0:00:20]} 22. Rcd1 {[%emt 0:00:00]} Qf6 {[%emt 0:06:06]} 23. Bxc5 {[%emt 0:00:00]} bxc5 {[%emt 0:00:01]} 24. Qd5 {[%emt 0:00:00]} Rac8 {[%emt 0:04:19]} 25. Nd6 {[%emt 0:00:00]} Rc7 {[%emt 0:00:01]} 26. Rb1 {[%emt 0:00:00]} h5 {[%emt 0:03:03]} 27. Rb6 {[%emt 0:00:00]} Kh7 {[%emt 0:12:29]} 28. Reb1 {[%emt 0:00:00]} Qg5 {[%emt 0:00:00]} 29. Rb8 {[%emt 0:00:00]} Rxb8 {[%emt 0:00:00]} 30. Rxb8 {[%emt 0:00:00]} Qc1+ {[%emt 0:00:00]} 31. Bf1 {[%emt 0:00:00]} e4 {[%emt 0:00:00]} 32. Nxf5 {[%emt 0:00:00]} 1-0

[Event "Berkeley Summer IM 2019"]
[Site "Berkeley"]
[Date "2019.08.20"]
[Round "7.5"]
[White "Saikhanchimeg, Tsogtsaikhan"]
[Black "Ordaz Valdes, Lisandra Teresa"]
[Result "1-0"]
[ECO "C52"]
[WhiteElo "2011"]
[BlackElo "2393"]
[Annotator "NA"]
[PlyCount "99"]
[EventDate "2019.08.14"]
[EventType "tourn"]
[EventCountry "USA"]
[SourceTitle "playchess.com"]
[Source "ChessBase"]
[SourceQuality "1"]
[TimeControl "5400+30"]

1. e4 {[%emt 0:01:07]} e5 {[%emt 0:00:00]} 2. Nf3 {[%emt 0:00:17]} Nc6 {[%emt 0:00:00]} 3. Bc4 {[%emt 0:00:52]} Bc5 {[%emt 0:00:00]} 4. b4 {[%emt 0:00:37]} Bxb4 {[%emt 0:00:00]} 5. c3 {[%emt 0:00:01]} Ba5 {[%emt 0:00:06]} 6. d4 {[%emt 0:00:18]} d6 {[%emt 0:00:17]} 7. Qb3 {[%emt 0:16:08]} Qd7 {[%emt 0:07:20]} 8. dxe5 {[%emt 0:19:53]} Bb6 {[%emt 0:09:42]} 9. Bb5 {[%emt 0:21:18]} Nge7 {[%emt 0:08:28]} 10. O-O {[%emt 0:02:15]} O-O {[%emt 0:01:57]} 11. Ba3 {[%emt 0:04:56]} Ng6 {[%emt 0:07:14]} 12. exd6 {[%emt 0:13:02]} Nf4 {[%emt 0:11:19]} 13. Bxc6 {[%emt 0:14:53]} Qg4 {[%emt 0:14:00]} 14. Ne1 {[%emt 0:00:16]} bxc6 {[%emt 0:00:07]} 15. Nd2 {[%emt 0:00:51]} Be6 {[%emt 0:13:33]} 16. c4 {[%emt 0:00:19]} Bd4 {[%emt 0:02:02]} 17. Rd1 {[%emt 0:00:23]} Nh3+ {[%emt 0:02:03]} 18. Qxh3 {[%emt 0:00:34]} Qxd1 {[%emt 0:00:05]} 19. Qd3 {[%emt 0:00:10]} c5 {[%emt 0:06:56]} 20. Nef3 {[%emt 0:01:13]} Qa4 {[%emt 0:00:17]} 21. Nxd4 {[%emt 0:00:33]} cxd4 {[%emt 0:00:05]} 22. dxc7 {[%emt 0:01:04]} Rfc8 {[%emt 0:01:33]} 23. Bd6 {[%emt 0:00:00]} Qxa2 {[%emt 0:01:16]} 24. Qxd4 {[%emt 0:00:00]} a5 {[%emt 0:00:15]} 25. Qc3 {[%emt 0:00:49]} Qa4 {[%emt 0:00:10]} 26. e5 {[%emt 0:00:38]} Qc6 {[%emt 0:00:19]} 27. Ra1 {[%emt 0:00:26]} a4 {[%emt 0:00:15]} 28. h3 {[%emt 0:00:27]} Bd5 {[%emt 0:02:52]} 29. Qg3 {[%emt 0:00:36]} Be6 {[%emt 0:00:45]} 30. Qd3 {[%emt 0:00:28]} Rxc7 {[%emt 0:03:27]} 31. Bxc7 {[%emt 0:00:27]} Qxc7 {[%emt 0:00:01]} 32. Qd6 {[%emt 0:00:30]} Qa5 {[%emt 0:00:05]} 33. Nb3 {[%emt 0:00:35]} Qa6 {[%emt 0:05:11]} 34. Qxa6 {[%emt 0:00:30]} Rxa6 {[%emt 0:00:01]} 35. Nc5 {[%emt 0:00:05]} Ra5 {[%emt 0:00:03]} 36. Nxe6 {[%emt 0:00:51]} fxe6 {[%emt 0:00:01]} 37. f4 {[%emt 0:00:00]} Kf7 {[%emt 0:02:23]} 38. Ra3 {[%emt 0:00:29]} Ke7 {[%emt 0:00:12]} 39. Kf2 {[%emt 0:00:07]} Kd7 {[%emt 0:00:18]} 40. Ke3 {[%emt 0:00:06]} Kc6 {[%emt 0:01:02]} 41. Kd4 {[%emt 0:00:02]} Ra7 {[%emt 0:00:40]} 42. g4 {[%emt 0:00:29]} g6 {[%emt 0:00:04]} 43. h4 {[%emt 0:01:06]} h5 {[%emt 0:00:14]} 44. gxh5 {[%emt 0:01:36]} gxh5 {[%emt 0:00:02]} 45. Ke4 {[%emt 0:00:39]} Kc5 {[%emt 0:00:34]} 46. f5 {[%emt 0:00:10]} Kb4 {[%emt 0:04:01]} 47. Ra1 {[%emt 0:00:04]} exf5+ {[%emt 0:00:52]} 48. Kxf5 {[%emt 0:00:02]} Kxc4 {[%emt 0:00:47]} 49. e6 {[%emt 0:00:18]} Kd5 {[%emt 0:00:25]} 50. Rd1+ {[%emt 0:00:06]} 1-0

[Event "Berkeley Summer IM 2019"]
[Site "Berkeley"]
[Date "2019.08.21"]
[Round "9.3"]
[White "Cervantes Landeiro, Thalia"]
[Black "Belakovskaia, Anjelina"]
[Result "1/2-1/2"]
[ECO "D70"]
[WhiteElo "2118"]
[BlackElo "2191"]
[Annotator "ChessBase"]
[PlyCount "105"]
[EventDate "2019.08.14"]
[EventType "tourn"]
[EventCountry "USA"]
[SourceTitle "playchess.com"]
[Source "ChessBase"]
[SourceQuality "1"]
[TimeControl "5400+30"]

1. d4 {[%emt 0:00:00]} d5 {[%emt 0:00:00]} 2. c4 {[%emt 0:00:00]} c6 {[%emt 0:00:00]} 3. Nf3 {[%emt 0:00:00]} Nf6 {[%emt 0:00:00]} 4. e3 {[%emt 0:00:00]} g6 {[%emt 0:02:08]} 5. b3 {[%emt 0:02:05]} Bg7 {[%emt 0:00:25]} 6. Bb2 {[%emt 0:00:36]} Bg4 {[%emt 0:10:47]} 7. Be2 {[%emt 0:02:17]} O-O {[%emt 0:02:52]} 8. O-O {[%emt 0:00:47]} Bxf3 {[%emt 0:06:47]} 9. Bxf3 {[%emt 0:00:27]} Ne4 {[%emt 0:00:34]} 10. Qd3 {[%emt 0:04:49]} f5 {[%emt 0:03:03]} 11. cxd5 {[%emt 0:01:35]} cxd5 {[%emt 0:00:05]} 12. Nc3 {[%emt 0:04:58]} e6 {[%emt 0:01:13]} 13. Ba3 {[%emt 0:03:47]} Rf7 {[%emt 0:04:54]} 14. Na4 {[%emt 0:09:00]} Na6 {[%emt 0:14:08]} 15. Rac1 {[%emt 0:07:12]} Rc8 {[%emt 0:03:22]} 16. b4 {[%emt 0:10:42]} Nd6 {[%emt 0:22:19]} 17. b5 {[%emt 0:06:57]} Nb8 {[%emt 0:00:51]} 18. Rxc8 {[%emt 0:07:16]} Nxc8 {[%emt 0:00:02]} 19. Rc1 {[%emt 0:00:59]} Rc7 {[%emt 0:00:18]} 20. Rc3 {[%emt 0:00:42]} b6 {[%emt 0:07:55]} 21. Bd1 {[%emt 0:02:03]} Bf8 {[%emt 0:01:18]} 22. Bxf8 {[%emt 0:05:28]} Kxf8 {[%emt 0:00:02]} 23. f3 {[%emt 0:03:09]} Nd6 {[%emt 0:00:19]} 24. Be2 {[%emt 0:06:19]} Qc8 {[%emt 0:00:50]} 25. Kf2 {[%emt 0:01:35]} Kf7 {[%emt 0:01:32]} 26. Rxc7+ {[%emt 0:02:09]} Qxc7 {[%emt 0:00:01]} 27. Qc3 {[%emt 0:00:22]} Qxc3 {[%emt 0:00:58]} 28. Nxc3 {[%emt 0:00:02]} Nd7 {[%emt 0:01:43]} 29. a4 {[%emt 0:00:55]} Ke7 {[%emt 0:01:42]} 30. Na2 {[%emt 0:00:43]} Nb8 {[%emt 0:02:31]} 31. Nb4 {[%emt 0:01:09]} Nf7 {[%emt 0:01:16]} 32. Bd3 {[%emt 0:02:08]} Kd6 {[%emt 0:00:26]} 33. e4 {[%emt 0:03:42]} fxe4 {[%emt 0:09:58]} 34. fxe4 {[%emt 0:00:06]} e5 {[%emt 0:00:03]} 35. exd5 {[%emt 0:02:56]} exd4 {[%emt 0:00:02]} 36. Nc6 {[%emt 0:00:37]} Ne5 {[%emt 0:01:21]} 37. Bc2 {[%emt 0:02:07]} Nbd7 {[%emt 0:00:05]} 38. Nxa7 {[%emt 0:03:35]} Kxd5 {[%emt 0:00:38]} 39. Nc6 {[%emt 0:01:56]} Nxc6 {[%emt 0:01:20]} 40. Be4+ {[%emt 0:00:27]} Kd6 {[%emt 0:00:05]} 41. bxc6 {[%emt 0:01:23]} Nc5 {[%emt 0:00:22]} 42. Bf3 {[%emt 0:01:32]} Nxa4 {[%emt 0:00:04]} 43. Ke2 {[%emt 0:00:04]} Nc5 {[%emt 0:00:23]} 44. h4 {[%emt 0:00:24]} h6 {[%emt 0:00:48]} 45. Kd2 {[%emt 0:00:42]} b5 {[%emt 0:01:25]} 46. g4 {[%emt 0:00:49]} g5 {[%emt 0:00:32]} 47. hxg5 {[%emt 0:00:05]} hxg5 {[%emt 0:00:01]} 48. Kc2 {[%emt 0:00:02]} b4 {[%emt 0:01:15]} 49. Bh1 {[%emt 0:00:39]} Kc7 {[%emt 0:00:35]} 50. Bd5 {[%emt 0:01:21]} Kd6 {[%emt 0:00:22]} 51. Bh1 {[%emt 0:00:01]} Kc7 {[%emt 0:00:58]} 52. Bd5 {[%emt 0:00:02]} Kd6 {[%emt 0:00:01]} 53. Bh1 {[%emt 0:01:02]} 1/2-1/2